bitfinex-derivatives/quotes_ETHF0:USTF0_20260119
["timestamp","ask_amount","ask_price","bid_price","bid_amount"]
[1768826769818,1.27962847,3231.2,3230.0,0.28738363]
[1768826770821,1.27962847,3231.3,3230.0,0.28738363]
[1768826771418,0.95856601,3231.2,3230.0,0.28738363]
[1768826771619,1.27962847,3231.3,3230.0,0.28738363]
[1768826771823,0.95856228,3231.2,3230.1,0.15489]
[1768826772120,1.27962847,3231.3,3230.1,0.15489]
[1768826772419,0.95855997,3231.2,3230.1,0.15489]
[1768826772620,1.27962847,3231.3,3230.1,0.15489]
[1768826772819,0.95906621,3231.2,3230.1,0.15489]
[1768826773120,0.95906621,3231.1,3230.1,0.15489]
[1768826773323,1.27962847,3231.3,3230.1,0.15489]
[1768826773518,0.95981857,3231.2,3230.1,0.15489]
[1768826773718,1.27962847,3231.3,3230.1,0.15489]
[1768826773719,0.95981857,3231.1,3230.1,0.15489]
[1768826773915,1.27962847,3231.3,3230.1,0.15489]
[1768826774114,0.95981821,3231.2,3230.1,0.15489]
[1768826774314,0.95981821,3231.1,3230.1,0.15489]
[1768826774521,1.27962847,3231.3,3230.1,0.15489]
[1768826774720,0.9598241,3231.2,3230.1,0.15489]
[1768826774926,0.9598241,3231.1,3230.1,0.15489]
[1768826775117,1.27962847,3231.3,3230.1,0.15489]
[1768826775317,0.95982393,3231.2,3230.1,0.15489]
[1768826775518,0.95982393,3231.1,3230.1,0.15489]
[1768826775718,1.27962847,3231.3,3230.1,0.15489]
[1768826775919,0.95983016,3231.2,3230.1,0.15489]
[1768826776117,0.95983016,3231.1,3230.1,0.15489]
[1768826776319,1.27962847,3231.3,3230.1,0.15489]
[1768826776523,0.95983748,3231.2,3230.1,0.15489]
[1768826776722,0.95983748,3231.1,3230.1,0.15489]
[1768826777022,1.27962847,3231.3,3230.1,0.15489]
[1768826777222,0.95983766,3231.2,3230.1,0.15489]
[1768826777431,0.95983766,3231.1,3230.1,0.15489]
[1768826777623,1.27962847,3231.3,3230.1,0.15489]
[1768826777823,0.95982208,3231.2,3230.1,0.15489]
[1768826778024,0.95982208,3231.1,3230.1,0.15489]
[1768826778225,1.27962847,3231.3,3230.1,0.15489]
[1768826778526,0.95980542,3231.2,3230.1,0.15489]
[1768826778726,0.95980542,3231.1,3230.1,0.15489]
[1768826778922,1.27962847,3231.3,3230.1,0.15489]
[1768826779121,0.95980542,3231.2,3230.1,0.15489]
[1768826779328,0.95980542,3231.1,3230.1,0.15489]
[1768826779529,1.27962847,3231.3,3230.1,0.15489]
[1768826779823,0.95979022,3231.2,3230.1,0.15489]
[1768826780028,0.95979022,3231.1,3230.1,0.15489]
[1768826780331,1.27962847,3231.3,3230.1,0.15489]
[1768826780529,0.95977642,3231.2,3230.1,0.15489]
[1768826780829,0.95977642,3231.1,3230.1,0.15489]
[1768826781022,1.27962847,3231.3,3230.1,0.15489]
[1768826781221,0.95977642,3231.2,3230.1,0.15489]
[1768826781422,0.95977642,3231.1,3230.1,0.15489]
[1768826781622,1.27962847,3231.3,3230.1,0.15489]
[1768826781822,0.95976397,3231.2,3230.1,0.15489]
[1768826782018,0.95976397,3231.1,3230.1,0.15489]
[1768826782227,1.27962847,3231.3,3230.1,0.15489]
[1768826782428,0.96017417,3231.2,3230.1,0.15489]
[1768826782629,0.96017417,3231.1,3230.1,0.15489]
[1768826782829,0.96017417,3231.0,3230.1,0.15489]
[1768826783030,2.93570212,3231.6,3230.1,0.15489]
[1768826783227,0.96017411,3231.5,3230.1,0.15489]
[1768826783428,0.96017411,3231.4,3230.1,0.15489]
[1768826783726,2.93570212,3231.6,3230.1,0.15489]
[1768826783727,0.96017411,3231.3,3230.1,0.15489]
[1768826783927,0.96017411,3231.2,3230.1,0.15489]
[1768826784129,0.96017411,3231.1,3230.1,0.15489]
[1768826784429,0.96017411,3231.0,3230.1,0.15489]
[1768826784631,0.12248722,3231.5,3230.1,0.15489]
[1768826784830,2.93570212,3231.2,3229.6,0.29830706]
[1768826785027,1.08266057,3231.1,3229.6,0.15491]
[1768826785333,1.08266057,3231.0,3229.6,0.15491]
[1768826785528,0.96017335,3230.9,3229.6,0.15491]
[1768826785728,0.96017335,3230.8,3229.6,0.15491]
[1768826786035,0.96017335,3230.7,3229.6,0.15491]
[1768826786232,0.96017335,3230.6,3229.6,0.15491]
[1768826786436,0.12248722,3231.0,3229.7,0.15491]
[1768826786730,0.95974674,3230.9,3229.9,0.1549]
[1768826786936,0.95974674,3230.8,3229.9,0.1549]
[1768826787235,0.95974674,3230.7,3229.9,0.1549]
[1768826787436,1.65696311,3231.3,3229.9,0.1549]
[1768826791839,2.61656452,3231.3,3229.9,0.1549]
[1768826794840,0.95960141,3231.2,3229.9,0.1549]
[1768826795040,0.95960141,3231.1,3229.9,0.1549]
[1768826795244,0.95960141,3231.0,3229.9,0.1549]
[1768826795436,0.95960141,3230.9,3229.9,0.1549]
[1768826795741,1.27873901,3231.4,3229.9,0.29829706]
[1768826795943,0.95920954,3231.3,3229.9,0.29829706]
[1768826796137,0.95920954,3231.2,3229.9,0.29829706]
[1768826796340,0.95920954,3231.1,3229.9,0.29829706]
[1768826796539,0.95920954,3231.0,3229.9,0.29829706]
[1768826796743,0.95920954,3230.9,3229.9,0.29829706]
[1768826796944,1.27873901,3231.4,3229.9,0.29829706]
[1768826797145,0.95930128,3231.3,3229.9,0.29829706]
[1768826797344,0.95930128,3231.2,3229.9,0.29829706]
[1768826797640,0.95930128,3231.1,3230.3,0.15488]
[1768826797839,0.11256081,3231.9,3230.4,0.15487]
[1768826798040,0.95938369,3231.8,3230.4,0.14339706]
[1768826798241,0.95938369,3231.7,3230.4,0.14339706]
[1768826798438,0.95938369,3231.6,3230.7,0.15486]
[1768826798742,0.95938369,3231.5,3230.7,0.15486]
[1768826798937,0.00302122,3232.1,3230.7,0.15486]
[1768826799137,0.95928299,3232.0,3230.7,0.15486]
[1768826799338,0.95928299,3231.9,3230.7,0.15486]
[1768826799540,0.95928299,3231.8,3230.7,0.15486]
[1768826799737,0.95928299,3231.7,3230.7,0.2898561]
[1768826799945,0.95928299,3231.6,3230.7,0.2898561]
[1768826800248,0.00302122,3232.1,3230.7,0.2898561]
[1768826800441,0.95887164,3232.0,3230.7,0.2898561]
[1768826800641,0.95887164,3231.9,3230.7,0.2898561]
[1768826800842,0.95887164,3231.8,3230.7,0.2898561]
[1768826801036,0.95887164,3231.7,3230.7,0.2898561]
[1768826801348,0.00302122,3232.1,3230.7,0.2898561]
[1768826801547,0.95868022,3232.0,3230.7,0.2898561]
[1768826801735,0.95868022,3231.9,3230.7,0.2898561]
[1768826801941,0.95868022,3231.8,3230.7,0.15486]
[1768826802141,0.95868022,3231.7,3230.7,0.15486]
[1768826802346,1.27873901,3231.9,3230.7,0.15486]
[1768826802646,0.95850792,3231.8,3230.7,0.15486]
[1768826802847,0.95850792,3231.7,3230.7,0.15486]
[1768826803051,1.28176023,3232.1,3230.7,0.15486]
[1768826803250,0.95850759,3232.0,3230.7,0.15486]
[1768826803448,0.95850759,3231.9,3230.7,0.15486]
[1768826803749,0.95850759,3231.8,3230.7,0.15486]
[1768826803953,0.95850759,3231.7,3230.7,0.15486]
[1768826804147,1.28176023,3232.1,3230.7,0.15486]
[1768826804346,0.95834403,3232.0,3230.7,0.15486]
[1768826804547,0.95834403,3231.9,3230.7,0.15486]
[1768826804743,0.95834403,3231.8,3230.7,0.15486]
[1768826804943,0.95834403,3231.7,3230.7,0.15486]
[1768826805143,1.28176023,3232.1,3230.7,0.15486]
[1768826805344,0.95820015,3232.0,3230.7,0.15486]
[1768826805643,0.95820015,3231.9,3230.7,0.15486]
[1768826805850,0.95820015,3231.8,3230.7,0.15486]
[1768826806053,1.28176023,3232.1,3230.7,0.15486]
[1768826806258,0.95807081,3232.0,3230.7,0.15486]
[1768826806454,0.95807081,3231.9,3230.7,0.15486]
[1768826806648,0.95807081,3231.8,3230.7,0.15486]
[1768826806953,1.28176023,3232.1,3230.7,0.15486]
[1768826807157,0.95795292,3232.0,3230.7,0.15486]
[1768826807343,0.95795292,3231.9,3230.7,0.15486]
[1768826807545,0.95795292,3231.8,3230.7,0.15486]
[1768826807752,1.28176023,3232.1,3230.7,0.15486]
[1768826807956,0.95784466,3232.0,3230.7,0.15486]
[1768826808251,0.95784466,3231.9,3230.7,0.15486]
[1768826808452,0.95784466,3231.8,3230.7,0.15486]
[1768826808653,1.28176023,3232.1,3230.7,0.15486]
[1768826808955,0.9577496,3232.0,3230.7,0.15486]
[1768826809256,0.9577496,3231.9,3230.7,0.15486]
[1768826809458,0.9577496,3231.8,3230.7,0.15486]
[1768826809656,1.28176023,3232.1,3230.7,0.15486]
[1768826809956,0.95766308,3232.0,3230.7,0.15486]
[1768826810150,0.95766308,3231.9,3230.7,0.15486]
[1768826810345,0.95766308,3231.8,3230.7,2.73586]
[1768826810552,0.00302122,3232.1,3230.7,2.8708561]
[1768826810851,0.9575822,3232.0,3230.7,2.8708561]
[1768826811055,0.9575822,3231.9,3230.7,2.8708561]
[1768826811358,0.9575822,3231.8,3230.7,2.8708561]
[1768826811551,0.00302122,3232.1,3230.7,2.8708561]
[1768826811753,0.95751035,3232.0,3230.7,2.8708561]
[1768826811952,0.95751035,3231.9,3230.7,2.8708561]
[1768826812155,0.95751035,3231.8,3230.7,2.8708561]
[1768826812354,0.00302122,3232.1,3230.7,2.8708561]
[1768826812554,0.95742201,3232.0,3230.7,2.8708561]
[1768826812755,0.95742201,3231.9,3230.7,2.8708561]
[1768826812963,0.95742201,3231.8,3230.7,2.8708561]
[1768826813265,0.00302122,3232.1,3230.7,2.8708561]
[1768826813563,0.95736045,3232.0,3230.7,2.8708561]
[1768826813865,0.95736045,3231.9,3230.7,2.8708561]
[1768826814063,0.95736045,3231.8,3230.7,2.8708561]
[1768826814264,0.00302122,3232.1,3230.7,2.8708561]
[1768826814465,0.95730755,3232.0,3230.8,0.15486]
[1768826814763,0.95730755,3231.9,3230.8,0.15486]
[1768826814966,0.95730755,3231.8,3230.8,0.15486]
[1768826815263,0.00302122,3232.1,3230.8,0.15486]
[1768826815460,0.95736255,3232.0,3230.8,0.15486]
[1768826815666,0.95736255,3231.9,3230.8,0.15486]
[1768826815859,0.95736255,3231.8,3230.8,0.15486]
[1768826816059,0.00302122,3232.1,3230.8,0.15486]
[1768826816262,0.95736255,3232.0,3230.8,0.15486]
[1768826816463,0.95736255,3231.9,3230.8,0.15486]
[1768826816664,0.95736255,3231.8,3230.8,0.15486]
[1768826816961,0.00302122,3232.1,3230.8,0.15486]
[1768826817267,0.95746115,3232.0,3230.8,0.15486]
[1768826817566,0.95746115,3231.9,3230.8,0.15486]
[1768826817766,0.95746115,3231.8,3230.8,0.15486]
[1768826817967,0.00302122,3232.1,3230.8,0.15486]
[1768826818165,0.95753948,3232.0,3230.8,0.15486]
[1768826818365,0.95753948,3231.9,3230.8,0.15486]
[1768826818566,0.95753948,3231.8,3230.8,0.15486]
[1768826818767,0.00302122,3232.1,3230.8,0.15486]
[1768826818970,0.95763994,3232.0,3230.8,0.15486]
[1768826819266,0.95763994,3231.9,3230.9,0.15485]
[1768826819469,0.95763994,3231.8,3230.9,0.15485]
[1768826819670,0.00302122,3232.1,3230.9,0.15485]
[1768826819972,0.95776068,3232.0,3230.9,0.15485]
[1768826820176,0.95776068,3231.9,3230.9,0.15485]
[1768826820369,0.95776068,3231.8,3230.9,0.15485]
[1768826820569,0.00302122,3232.1,3230.9,0.15485]
[1768826820773,0.95790921,3232.0,3230.9,0.15485]
[1768826820973,0.95790921,3231.9,3230.9,0.15485]
[1768826821172,0.95790921,3231.8,3230.9,0.15485]
[1768826821373,0.00302122,3232.1,3230.9,0.15485]
[1768826821575,0.9580872,3232.0,3230.9,0.15485]
[1768826821773,0.9580872,3231.9,3230.9,0.15485]
[1768826822074,0.9580872,3231.8,3230.9,0.15485]
[1768826822378,0.95830269,3231.7,3230.9,0.15485]
[1768826822582,0.00302122,3232.1,3230.9,0.15485]
[1768826822787,0.95830269,3232.0,3230.9,0.15485]
[1768826822986,0.95830269,3231.9,3230.9,0.15485]
[1768826823187,0.95830269,3231.8,3230.9,0.15485]
[1768826823390,0.95830269,3231.7,3230.9,0.15485]
[1768826823591,0.00302122,3232.1,3230.9,0.15485]
[1768826823789,0.95857135,3232.0,3230.9,0.15485]
[1768826823981,0.95857135,3231.9,3230.9,0.15485]
[1768826824181,0.95857135,3231.8,3230.9,0.15485]
[1768826824381,0.95857135,3231.7,3230.9,0.15485]
[1768826824583,0.00302122,3232.1,3230.9,0.15485]
[1768826824782,0.95824929,3232.0,3230.9,0.15485]
[1768826825077,0.95824929,3231.9,3230.9,0.15485]
[1768826825280,0.95824929,3231.8,3230.9,0.15485]
[1768826825479,0.95824929,3231.7,3230.9,0.15485]
[1768826825784,0.95824929,3231.6,3230.9,0.15485]
[1768826825986,0.00302122,3232.1,3230.9,0.15485]
[1768826826184,0.95867917,3232.0,3230.9,0.15485]
[1768826826390,0.95867917,3231.9,3230.9,0.15485]
[1768826826590,0.95867917,3231.8,3230.9,0.15485]
[1768826826783,0.95867917,3231.7,3230.9,0.15485]
[1768826827091,0.00302122,3232.1,3230.9,0.29888507]
[1768826827292,0.95907539,3232.0,3230.9,0.29888507]
[1768826827485,0.95907539,3231.9,3230.9,0.29888507]
[1768826827687,0.00302122,3232.1,3230.9,0.29888507]
[1768826827688,0.95907539,3231.8,3230.9,0.29888507]
[1768826827992,0.00302122,3232.1,3230.9,0.29888507]
[1768826828189,0.9597259,3232.0,3230.9,0.29888507]
[1768826828390,0.9597259,3231.9,3230.9,0.29888507]
[1768826828594,0.9597259,3231.8,3230.9,0.29888507]
[1768826828892,0.00302122,3232.1,3230.9,0.29888507]
[1768826829096,0.95963618,3232.0,3230.9,0.29888507]
[1768826829293,0.95963618,3231.9,3230.9,0.29888507]
[1768826829489,0.95963618,3231.8,3230.9,0.29888507]
[1768826829688,0.00302122,3232.1,3231.0,2.602]
[1768826829888,0.95957183,3232.0,3231.0,2.602]
[1768826830088,0.95957183,3231.9,3231.0,2.602]
[1768826830300,0.95957183,3231.8,3231.0,2.602]
[1768826830598,0.00302122,3232.1,3231.0,2.602]
[1768826830800,0.95948732,3232.0,3231.0,2.602]
[1768826831101,0.95948732,3231.9,3231.0,2.602]
[1768826831295,0.95948732,3231.8,3231.0,2.602]
[1768826831597,0.00302122,3232.1,3231.0,2.602]
[1768826831792,0.95941971,3232.0,3231.0,2.602]
[1768826831992,0.95941971,3231.9,3231.0,2.602]
[1768826832194,0.95941971,3231.8,3231.0,2.602]
[1768826832398,0.00302122,3232.1,3231.0,2.602]
[1768826832599,0.95936417,3232.0,3231.0,2.602]
[1768826832901,0.95936417,3231.9,3231.0,2.602]
[1768826833099,0.95936417,3231.8,3230.9,0.15485]
[1768826833299,0.00302122,3232.1,3230.9,0.15485]
[1768826833500,0.95931903,3232.0,3230.9,0.15485]
[1768826833800,0.95931903,3231.9,3230.9,0.15485]
[1768826833990,0.95931903,3231.8,3230.9,0.15485]
[1768826834191,0.00302122,3232.1,3230.9,0.15485]
[1768826834391,0.95928361,3232.0,3230.9,0.15485]
[1768826834591,0.95928361,3231.9,3230.9,0.15485]
[1768826834791,0.95928361,3231.8,3230.9,0.15485]
[1768826834999,0.00302122,3232.1,3230.9,0.15485]
[1768826835190,0.95928354,3232.0,3230.9,0.15485]
[1768826835386,0.95928354,3231.9,3230.9,0.15485]
[1768826835589,0.95928354,3231.8,3230.9,0.15485]
[1768826835792,0.00302122,3232.1,3230.9,0.15485]
[1768826835991,0.95925522,3232.0,3230.9,0.15485]
[1768826836192,0.95925522,3231.9,3230.9,0.15485]
[1768826836394,0.95925522,3231.8,3230.9,0.15485]
[1768826836692,0.00302122,3232.1,3230.9,0.15485]
[1768826836894,0.95923395,3232.0,3230.9,0.15485]
[1768826837100,0.95923395,3231.9,3230.9,0.15485]
[1768826837299,0.95923395,3231.8,3230.9,0.15485]
[1768826837595,0.00302122,3232.1,3230.9,0.15485]
[1768826837797,0.95921672,3232.0,3230.9,0.15485]
[1768826838001,0.95921672,3231.9,3230.9,0.15485]
[1768826838202,0.95921672,3231.8,3230.9,0.15485]
[1768826838498,0.00302122,3232.1,3230.9,0.15485]
[1768826838699,0.95920685,3232.0,3230.9,0.15485]
[1768826838998,0.95920685,3231.9,3230.9,0.15485]
[1768826839198,0.95920685,3231.8,3230.9,0.15485]
[1768826839400,0.00302122,3232.1,3230.9,0.15485]
[1768826839596,1.27873901,3231.7,3230.3,0.15488]
[1768826839801,1.27873901,3231.3,3230.3,0.15488]
[1768826840002,1.27873901,3231.7,3230.3,1.86888]
[1768826840003,0.9593242,3231.2,3230.3,1.86888]
[1768826840296,1.27873901,3231.7,3230.3,1.86888]
[1768826840606,0.9591092,3231.6,3230.3,1.86888]
[1768826840808,0.9591092,3231.5,3230.3,1.86888]
[1768826841101,0.9591092,3231.4,3230.3,1.86888]
[1768826841302,0.9591092,3231.3,3230.3,1.86888]
[1768826841502,1.27873901,3231.7,3230.3,1.86888]
[1768826841696,0.95892313,3231.6,3230.3,1.86888]
[1768826841896,0.95892313,3231.5,3230.3,0.15488]
[1768826842204,0.95892313,3231.4,3230.3,0.15488]
[1768826842497,0.95892313,3231.3,3230.3,0.15488]
[1768826842704,1.27873901,3231.7,3230.3,0.15488]
[1768826842906,0.95876024,3231.6,3230.3,0.15488]
[1768826843203,0.95876024,3231.5,3230.3,0.15488]
[1768826843502,0.95876024,3231.4,3230.3,0.15488]
[1768826843707,2.93570212,3231.7,3230.3,0.15488]
[1768826843708,0.95876024,3231.3,3230.3,0.15488]
[1768826844002,0.95876024,3231.2,3230.3,0.15488]
[1768826844202,1.27873901,3231.7,3230.3,0.15488]
[1768826844396,0.95837834,3231.6,3230.3,0.15488]
[1768826844590,0.95837834,3231.5,3230.1,0.14403507]
[1768826844792,0.95837834,3231.4,3230.1,0.14403507]
[1768826844992,0.95837834,3231.4,3229.8,0.1549]
[1768826844993,1.2788712,3231.0,3229.8,0.1549]
[1768826845306,1.2788712,3230.7,3229.8,0.1549]
[1768826845603,1.2788712,3230.7,3229.8,2.7589]
[1768826846903,1.2788712,3230.9,3229.8,2.89525213]
[1768826847094,1.2788712,3230.9,3229.9,0.13635213]
[1768826850406,1.2788712,3230.6,3229.8,0.1549]
[1768826851003,1.2788712,3230.3,3229.5,0.13635213]
[1768826851203,1.2788712,3230.6,3229.5,2.74835213]
[1768826852703,1.2788712,3230.6,3229.5,0.13635213]
[1768826855009,0.15483,3231.4,3229.9,0.13635213]
[1768826855311,1.2788712,3231.2,3229.9,0.13635213]
[1768826855506,0.95141136,3231.1,3229.9,0.13635213]
[1768826855714,1.2788712,3231.2,3229.9,0.13635213]
[1768826856013,0.95131341,3231.1,3229.9,0.13635213]
[1768826856221,1.2788712,3231.2,3229.9,0.13635213]
[1768826856414,0.9512474,3231.1,3229.9,0.13635213]
[1768826856714,1.2788712,3231.2,3229.9,0.13635213]
[1768826856905,0.95124723,3231.1,3229.9,0.13635213]
[1768826857105,1.2788712,3231.1,3229.9,0.13635213]
[1768826860018,1.2788712,3230.8,3229.9,0.13635213]
[1768826861108,1.2788712,3230.8,3229.8,0.1549]
[1768826861512,1.2788712,3230.5,3229.5,0.13520296]
[1768826861915,1.2788712,3230.2,3229.5,0.13520296]
[1768826863018,1.2788712,3230.5,3229.5,0.13520296]
[1768826868518,1.2788712,3230.5,3229.4,0.15492]
[1768826869828,1.2788712,3230.4,3229.4,0.15492]
[1768826871421,1.2788712,3230.8,3229.4,0.15492]
[1768826871622,1.2788712,3230.5,3229.4,0.15492]
[1768826871823,0.95399839,3230.4,3229.4,0.15492]
[1768826872214,2.23286959,3230.4,3229.4,0.15492]
[1768826872418,1.2788712,3230.4,3229.4,0.15492]
[1768826873723,1.2788712,3230.7,3229.5,0.14311314]
[1768826873924,2.2331675,3230.6,3229.5,0.14311314]
[1768826874221,0.9542963,3230.5,3229.5,0.14311314]
[1768826874422,0.9542963,3230.4,3229.5,0.14311314]
[1768826874621,1.2788712,3230.6,3229.5,0.14311314]
[1768826874810,0.95447629,3230.5,3229.5,0.14311314]
[1768826875011,0.95447629,3230.4,3229.5,0.14311314]
[1768826875209,1.65696311,3230.9,3229.6,0.14311314]
[1768826875415,2.23328723,3230.8,3229.6,0.14311314]
[1768826875615,0.95441603,3230.7,3229.6,0.14311314]
[1768826880224,0.95441603,3230.6,3229.6,0.14311314]
[1768826887027,0.95441603,3230.6,3229.5,0.15492]
[1768826887028,1.06567414,3230.6,3229.5,0.15492]
[1768826887227,1.65696311,3230.9,3228.4,0.14311314]
[1768826887228,1.2788712,3229.9,3228.4,0.14311314]
[1768826887428,0.95441603,3229.8,3228.6,0.14311314]
[1768826887620,0.95441603,3229.8,3228.8,0.15844365]
[1768826887821,0.95441603,3229.8,3229.0,0.15844365]
[1768826888022,0.95441603,3229.8,3228.6,0.14311314]
[1768826888223,1.2788712,3229.6,3228.9,0.15844365]
[1768826888422,1.2788712,3229.3,3228.6,0.1578715]
[1768826889128,1.2788712,3229.3,3228.6,0.0029115]
[1768826889427,1.2788712,3229.1,3228.6,0.0029115]
[1768826890421,1.2788712,3229.1,3228.0,0.15499]
[1768826890830,0.00350662,3229.8,3227.5,1.41482255]
[1768826890831,1.2788712,3228.7,3227.5,1.41482255]
[1768826891030,1.2788712,3229.0,3227.6,0.14311314]
[1768826891231,1.2788712,3229.0,3227.7,1.42198434]
[1768826891425,1.2788712,3229.0,3227.8,0.14311314]
[1768826891723,0.00350662,3229.8,3228.3,1.2788712]
[1768826891925,1.2788712,3229.6,3228.3,1.42198434]
[1768826892118,1.2788712,3229.4,3228.3,0.14311314]
[1768826898534,1.2788712,3229.4,3228.2,0.15498]
[1768826898535,1.2788712,3228.7,3227.9,0.14311314]
[1768826898735,1.2788712,3228.5,3227.7,0.0032734]
[1768826900531,1.2788712,3228.8,3227.7,0.0032734]
[1768826901938,1.2788712,3228.5,3227.7,0.0032734]
[1768826902139,1.2788712,3228.2,3227.7,0.0032734]
[1768826903242,0.11876174,3228.9,3227.7,0.0032734]
[1768826903243,1.2788712,3228.4,3227.7,0.0032734]
[1768826904944,1.39965863,3228.9,3227.7,0.0032734]
[1768826909249,1.07099098,3228.8,3227.5,1.41482255]
[1768826909443,0.12113194,3228.8,3227.5,1.41482255]
[1768826910158,0.12113194,3228.8,3227.5,1.41802154]
[1768826911053,0.15493,3229.2,3227.5,1.54974279]
[1768826911355,0.95023591,3229.1,3227.6,0.13172125]
[1768826911558,0.95023591,3229.0,3227.6,0.13172125]
[1768826911853,0.95023591,3228.9,3227.6,0.13172125]
[1768826912059,0.15493,3229.2,3227.6,0.13172125]
[1768826912253,0.9504793,3229.1,3227.6,0.13172125]
[1768826912449,0.9504793,3229.0,3227.6,0.13172125]
[1768826912650,0.9504793,3228.9,3227.6,0.13172125]
[1768826912851,0.15493,3229.2,3227.6,0.13172125]
[1768826913056,0.9504793,3229.1,3227.6,0.13172125]
[1768826913256,0.9504793,3229.0,3227.6,0.13172125]
[1768826913454,0.9504793,3228.9,3227.6,0.13172125]
[1768826913751,0.15493,3229.2,3227.6,0.13172125]
[1768826913954,0.95079967,3229.1,3227.6,0.13172125]
[1768826914156,0.95079967,3229.0,3227.6,0.13172125]
[1768826914343,0.95079967,3228.9,3227.6,0.13172125]
[1768826914545,0.95079967,3228.8,3227.6,0.13172125]
[1768826914758,0.15493,3229.2,3227.6,0.13172125]
[1768826914949,0.9533115,3229.1,3227.6,0.13172125]
[1768826915143,0.9533115,3229.0,3227.6,0.13172125]
[1768826915350,0.9533115,3228.9,3227.6,0.13172125]
[1768826915549,0.9533115,3228.8,3227.6,0.13172125]
[1768826915851,0.15493,3229.2,3227.6,0.13172125]
[1768826916156,2.76570215,3229.2,3227.6,0.13172125]
[1768826916371,0.95380904,3229.1,3227.6,0.13172125]
[1768826918282,0.95380904,3229.0,3227.6,0.13172125]
[1768826918583,0.95380904,3228.9,3227.6,0.13172125]
[1768826918770,0.95380904,3228.8,3227.6,0.13172125]
[1768826919077,0.95380904,3228.7,3227.6,0.13172125]
[1768826919278,0.95380904,3228.6,3227.6,0.13172125]
[1768826919476,1.81189311,3229.2,3227.6,0.13172125]
[1768826919680,0.95581208,3229.1,3227.6,0.13172125]
[1768826919880,0.95581208,3229.0,3227.6,0.13172125]
[1768826920075,0.95581208,3228.9,3227.6,0.13172125]
[1768826920279,0.95581208,3228.8,3227.6,0.13172125]
[1768826920478,0.95581208,3228.7,3227.6,0.13172125]
[1768826920678,0.95581208,3228.6,3227.6,0.13172125]
[1768826920882,1.81189311,3229.2,3227.6,0.13172125]
[1768826921177,0.95597526,3229.1,3227.6,0.13172125]
[1768826921378,0.95597526,3229.0,3227.6,0.13172125]
[1768826921576,0.95597526,3228.9,3227.6,0.13172125]
[1768826921776,0.95597526,3228.8,3227.6,0.13172125]
[1768826921973,0.95597526,3228.7,3227.6,0.13172125]
[1768826922277,0.95597526,3228.6,3227.6,0.13172125]
[1768826922470,0.95597526,3228.5,3227.6,0.13172125]
[1768826922671,1.81189311,3229.2,3227.6,0.13172125]
[1768826922871,0.95612311,3229.1,3227.6,0.13172125]
[1768826923072,0.95612311,3229.0,3227.6,0.13172125]
[1768826923284,0.95612311,3228.9,3227.6,0.13172125]
[1768826923477,0.95612311,3228.8,3227.6,0.13172125]
[1768826923676,1.07288026,3228.7,3227.2,0.15503]
[1768826923874,0.95612311,3228.6,3227.3,0.13431355]
[1768826924074,1.28089689,3228.8,3227.4,0.13431355]
[1768826924075,0.95612311,3228.5,3227.4,0.13431355]
[1768826924276,0.95612311,3228.4,3227.4,0.13431355]
[1768826924476,0.95612311,3228.3,3227.5,0.13431355]
[1768826924785,1.28089689,3228.8,3227.5,0.13812212]
[1768826924985,0.95641198,3228.7,3227.5,0.00380857]
[1768826925281,0.95641198,3228.6,3227.5,0.00380857]
[1768826925477,0.95641198,3228.5,3227.5,0.00380857]
[1768826925680,0.95641198,3228.4,3227.5,0.00380857]
[1768826925882,0.95641198,3228.3,3227.5,0.00380857]
[1768826926073,1.28089689,3228.8,3227.5,0.00380857]
[1768826926268,0.95675108,3228.7,3227.5,0.00380857]
[1768826926473,0.95675108,3228.6,3227.5,0.00380857]
[1768826926781,0.95675108,3228.5,3227.5,0.00380857]
[1768826926984,0.95675108,3228.4,3227.5,0.00380857]
[1768826927196,0.95675108,3228.3,3227.5,0.00380857]
[1768826927485,0.95675108,3228.2,3227.5,0.00380857]
[1768826927683,2.93786,3228.8,3227.5,0.00380857]
[1768826927869,0.9569969,3228.7,3227.5,0.00380857]
[1768826928074,0.9569969,3228.6,3227.5,0.00380857]
[1768826928284,0.9569969,3228.5,3227.5,0.00380857]
[1768826928485,0.9569969,3228.4,3227.5,0.00380857]
[1768826928786,0.9569969,3228.3,3227.5,0.00380857]
[1768826928982,0.9569969,3228.2,3227.5,0.00380857]
[1768826929281,1.65696311,3228.7,3227.5,0.00380857]
[1768826929476,2.61440715,3228.7,3227.5,0.00380857]
[1768826929676,0.95744404,3228.6,3227.5,0.00380857]
[1768826929872,0.95744404,3228.5,3227.5,0.00380857]
[1768826930074,0.95744404,3228.4,3227.5,0.00380857]
[1768826930285,0.95744404,3228.3,3227.5,0.00380857]
[1768826930587,1.65696311,3228.7,3227.5,0.00380857]
[1768826930588,0.95744404,3228.2,3227.5,0.00380857]
[1768826930779,0.95744404,3228.1,3227.5,0.00380857]
[1768826930971,1.65696311,3228.7,3227.5,0.00380857]
[1768826931380,2.61454201,3228.7,3227.5,0.00380857]
[1768826934382,0.9575789,3228.6,3227.5,0.00380857]
[1768826934683,0.9575789,3228.5,3227.5,0.00380857]
[1768826934884,0.9575789,3228.4,3227.5,0.00380857]
[1768826935084,0.9575789,3228.3,3227.5,0.00380857]
[1768826935285,0.9575789,3228.2,3227.5,0.00380857]
[1768826935480,0.9575789,3228.1,3227.3,0.15502]
[1768826935687,0.9575789,3228.0,3227.3,0.15502]
[1768826935881,2.93786,3228.5,3227.3,0.15502]
[1768826936082,0.9577441,3228.4,3227.3,0.15502]
[1768826936386,0.9577441,3228.3,3227.3,0.15502]
[1768826936590,0.9577441,3228.2,3227.3,0.15798091]
[1768826936885,0.9577441,3228.1,3227.3,0.15798091]
[1768826937087,0.9577441,3228.0,3227.3,0.15798091]
[1768826937280,1.28089689,3228.5,3227.3,0.15798091]
[1768826937480,0.95756981,3228.4,3227.3,0.15798091]
[1768826937687,0.95756981,3228.3,3227.3,0.15798091]
[1768826937887,0.95756981,3228.2,3227.3,0.15798091]
[1768826938089,0.95756981,3228.1,3227.3,0.15798091]
[1768826938391,0.95756981,3228.0,3227.3,0.15798091]
[1768826938582,2.93786,3228.5,3227.3,0.15798091]
[1768826938886,0.95750126,3228.4,3227.3,0.15798091]
[1768826939085,0.95750126,3228.3,3227.3,0.15798091]
[1768826939281,0.95750126,3228.2,3227.3,0.15798091]
[1768826939481,0.95750126,3228.1,3227.3,0.15798091]
[1768826939679,0.95750126,3228.0,3227.3,0.15798091]
[1768826939880,1.28089689,3228.5,3227.3,0.15798091]
[1768826940089,0.95742335,3228.4,3227.3,0.15798091]
[1768826940279,0.95742335,3228.3,3227.3,0.15798091]
[1768826940476,0.95742335,3228.2,3227.3,0.15798091]